Cogmind - Beta 15 @@@ ROGUE MODE // 2025.05.31 @ 01:06:00 Player: Candle Result: Smashed by cave-in Performance ------------- Evolutions (0) 0 Regions Visited (3) 600 Robots Destroyed (27) 135 Value Destroyed (588) 588 Prototype IDs (2) 40 Alien Tech Used (0) 0 Bonus (0) 0 TOTAL SCORE: 1363 Bonus ------- None Cogmind --------- Core Integrity 0/250 Matter 225/300 Energy 95/100 System Corruption 8% Temperature Cool (0) Movement Treading (160) Location -10/Subcaves Parts ------- > --- POWER (1) -------- (None) > --- PROPULSION (2) --- Light Treads Light Treads > --- UTILITY (2) ------ Large Storage Unit > --- WEAPON (2) ------- Improved Light Cannon Improved Light Cannon > --- INVENTORY (15) --- Subdweller Power Source Light Deuterium Engine Subdweller Monowheel Subdweller Monowheel Combat Airjet Hacking Suite Shotgun Shotgun Shotgun Improved Light Cannon Improved Light Cannon Rocket Launcher Maul Scrap Shield Fragment (46) Peak State ------------ > --- POWER ------------ Light Nuclear Core > --- PROPULSION ------- Light Treads Light Treads > --- UTILITY ---------- Large Storage Unit Improved Light Armor Plating > --- WEAPON ----------- Improved Light Cannon Improved Light Cannon > --- INVENTORY -------- Light Deuterium Engine Compact Wheel Subdweller Monowheel Combat Airjet Hacking Suite Shotgun Shotgun Shotgun Improved Light Cannon Improved Light Cannon Rocket Launcher Flamer Maul Scrap Shield Fragment [Rating: 16] Favorites ----------- Power Ion Engine Engine Ion Engine Power Core Light Nuclear Core Propulsion Light Treads Treads Light Treads Utility Large Storage Unit Device Seismic Detector Storage Large Storage Unit Protection Improved Light Armor Plating Weapon Improved Light Cannon Energy Gun Small Laser Ballistic Gun Shotgun Ballistic Cannon Improved Light Cannon Impact Weapon Maul Build | -11 -10 -10 -10 ------- Run | Yrd Mat Min Sub Slots Evolved . | . . . . Power . | . . . . Propulsion . | . . . . Utility . | . . . . Weapon . | . . . . Parts Attached 26 | 7 9 5 5 Power 4 | 1 . 1 2 Engine 3 | 1 . 1 1 Core 1 | . . . 1 Reactor . | . . . . Propulsion 6 | 2 1 1 2 Treads 6 | 2 1 1 2 Leg . | . . . . Wheel . | . . . . Hover . | . . . . Flight . | . . . . Utility 7 | 2 4 1 . Device 2 | 1 1 . . Storage 3 | 1 2 . . Processor . | . . . . Hackware . | . . . . Protection 2 | . 1 1 . Artifact . | . . . . Weapon 9 | 2 4 2 1 Energy Gun 2 | 2 . . . Energy Cannon . | . . . . Ballistic Gun 4 | . 2 2 . Ballistic Cannon 2 | . 2 . . Launcher . | . . . . Special Weapon . | . . . . Impact Weapon 1 | . . . 1 Slashing Weapon . | . . . . Piercing Weapon . | . . . . Special Melee Weapon . | . . . . Unidentified Prototypes . | . . . . Parts Lost 5 | . . 1 4 Power 3 | . . . 3 Propulsion . | . . . . Utility 2 | . . 1 1 Weapon . | . . . . Highest Loss Streak 3 | . . 1 3 To Critical Strikes . | . . . . Average Backups 11 | 2 10 14 14 Power 1 | . 1 1 2 Propulsion 2 | . 2 3 3 Utility 2 | . 3 2 1 Weapon 5 | . 3 7 7 Tool/Special . | . . . . Unused Backups 17 | . 4 1 12 Power 2 | . . . 2 Propulsion 4 | . . . 4 Utility 5 | . 3 . 2 Weapon 6 | . 1 1 4 Tool/Special . | . . . . Average Slot Usage (%) 99 | . 99 98 100 Engine 12 | . 14 14 9 Core 1 | . . . 4 Treads 28 | . 28 28 28 Device 5 | . 8 . . Storage 14 | . 14 14 14 Protection 8 | . 5 12 14 Ballistic Gun 10 | . 6 26 7 Ballistic Cannon 16 | . 20 1 18 Peak Build Rating 16 | 7 11 14 16 Average Rating 11 | 6 10 13 14 On Entrance 8 | . 7 11 14 Naked Turns . | . . . . Heaviest Build 36 | 13 36 36 36 Greatest Support 40 | 40 40 40 40 Greatest Overweight (x) 2 | 2 . . . Average Overweight (x) . | . . . . Largest Inventory Capacity 15 | 8 15 15 15 Average Capacity 13 | 7 12 15 15 Most Carried 15 | 5 15 15 15 Average Carried 11 | 2 10 14 14 Final Capacity 15 | 8 15 15 15 Final Carried 15 | 5 14 15 14 Class Distribution -------------------- 100% | Mutant Dominant Class ---------------- Mutant | -10/Materials Mutant | -10/Mines Mutant | -10/Subcaves Resources | -11 -10 -10 -10 ----------- Run | Yrd Mat Min Sub Matter Collected 1288 | 302 487 324 175 Remotely . | . . . . Salvage Created 647 | 177 162 186 122 Parts 54 | 20 18 4 12 Haulers Intercepted 2 | . 2 . . Recyclers Shooed 1 | 1 . . . Parts Field Recycled . | . . . . Retrieved Matter . | . . . . Parts Self-Destructed 16 | . . . 16 Prevented . | . . . . Kills | -11 -10 -10 -10 ------- Run | Yrd Mat Min Sub Combat Hostiles Destroyed 24 | . 4 15 5 Guns 15 | . . 15 . Cannons 9 | . 4 . 5 Classes Destroyed 10 | 3 4 2 1 Worker 2 | 2 . . . Tunneler 5 | 5 . . . Hauler 2 | . 2 . . Recycler 1 | 1 . . . Operator 2 | . 2 . . Watcher 1 | . 1 . . Swarmer 3 | . . 3 . Grunt 6 | . 4 2 . Subdweller 5 | . . . 5 Assembled 10 | . . 10 . Best Kill Streak 9 | 5 3 9 3 Combat Bots Only 9 | . 2 9 3 Max Kills in Single Turn 2 | 2 1 1 1 Gunslinging . | . . . . Exploded . | . . . . Melee . | . . . . Uniques/NPCs Destroyed . | . . . . Combat | -11 -10 -10 -10 -------- Run | Yrd Mat Min Sub Hostile Shots Fired 86 | . 16 40 30 Missed 25 | . 4 9 12 Hits 61 | . 12 31 18 Melee 10 | . . 10 . Projectile 51 | . 12 21 18 AOE 3 | . . . 3 Critical Strikes 1 | . . . 1 Damage Taken 1576 | . 213 479 884 Core 260 | . 16 63 181 Absorbed by Shields . | . . . . Regen/Repaired (Parts) 97 | . 97 . . Core Remaining (%) 100 | 100 . . . Volleys Fired 107 | 20 30 32 25 Largest 2 | 2 2 2 2 Hottest 80 | 80 66 46 66 Shots Fired 214 | 40 60 64 50 Gun 110 | 40 4 64 2 Cannon 104 | . 56 . 48 Launcher . | . . . . Special . | . . . . Kinetic 174 | . 60 64 50 Thermal 40 | 40 . . . Explosive . | . . . . Electromagnetic . | . . . . Robot Hit Streak 13 | 7 6 5 13 Robot Miss Streak 8 | 2 7 8 1 Penetration Max . | . . . . Secondary Targets . | . . . . Shots Hit Robots 139 | 27 30 49 33 Core Hits 58 | 9 12 27 10 Critical Kills . | . . . . Critical Parts Destroyed 1 | . . 1 . Critical Strikes 4 | . 3 1 . Destroy 1 | . . 1 . Blast 3 | . 3 . . Melee Attacks 3 | . . . 3 Impact 3 | . . . 3 Slashing . | . . . . Piercing . | . . . . Sneak Attacks . | . . . . Combat Hostiles . | . . . . Follow-up Attacks . | . . . . Damage Inflicted 2243 | 309 629 623 682 Guns 990 | 309 58 623 . Cannons 1253 | . 571 . 682 Explosions . | . . . . Melee . | . . . . Ramming . | . . . . Kinetic 1934 | . 629 623 682 Thermal 309 | 309 . . . Explosive . | . . . . Electromagnetic . | . . . . Impact . | . . . . Slashing . | . . . . Piercing . | . . . . Highest Corruption . | . . . . Average Corruption . | . . . . Corruption Purged . | . . . . Corruption Blocked . | . . . . Overload Shots . | . . . . Overflow Damage 10 | . 10 . . Projectiles 10 | . 10 . . Explosions . | . . . . Melee . | . . . . Knockbacks 11 | . 4 . 7 Impact . | . . . . Kinetic 11 | . 4 . 7 Secondary . | . . . . Self-Inflicted Damage . | . . . . Shots . | . . . . Rammed . | . . . . Targets Rammed . | . . . . Kicked . | . . . . Crushed . | . . . . Highest Temperature 120 | 108 120 32 . Average Temperature 35 | 47 32 13 . Received Heat Transfer 280 | . 105 91 84 Siege Activations . | . . . . Martial Activations . | . . . . Shielding Activations . | . . . . Robots Disrupted . | . . . . Combat Hostiles . | . . . . Robots Corrupted . | . . . . Combat Hostiles . | . . . . Parts Fried . | . . . . Impact Corruptions . | . . . . Robots Melted . | . . . . Combat Hostiles . | . . . . Parts Melted 2 | . . . 2 Heat Transferred 700 | 700 . . . Parts Sabotaged . | . . . . Parts Stolen . | . . . . Parts Stripped . | . . . . Power Chain Reactions . | . . . . Alert | -11 -10 -10 -10 ------- Run | Yrd Mat Min Sub Maximum Alert Level . | . . . . Low Security (%) 100 | 100 100 100 . Level 1 . | . . . . Level 2 . | . . . . Level 3 . | . . . . Level 4 . | . . . . Level 5 . | . . . . High Security . | . . . . Max Security . | . . . . Peak Influence 65 | 20 58 65 . Initial . | . . . . Average 10 | 2 9 13 . Influence Increases 380 | 40 193 147 . Destroy 0b10 Robot/C 180 | . 80 100 . Destroy 0b10 Robot/NC 65 | 40 25 . . Destroy Leader 46 | . 26 20 . Successful Hack 40 | . 28 12 . Disable Machine 30 | . 30 . . Destroy Structure 4 | . 4 . . Lose Combat Pursuer 15 | . . 15 . Influence Decreases 380 | 40 193 147 . Time Decay 380 | 40 193 147 . Squads Dispatched 3 | . 3 . . Investigation 2 | . 2 . . Extermination . | . . . . Reinforcement 1 | . 1 . . Assault . | . . . . Garrison . | . . . . Intercept . | . . . . Searches Triggered . | . . . . Construction Impeded . | . . . . Haulers Reinforced . | . . . . Active Scanning Responses . | . . . . Cargo Convoy Interrupts . | . . . . Stealth | -11 -10 -10 -10 --------- Run | Yrd Mat Min Sub Distress Signals 3 | . 2 1 . Communications Jammed . | . . . . Distress Signals . | . . . . Times Spotted 37 | . 9 21 7 Peak Tracking Total 9 | . 3 9 2 Tactical Retreats 3 | . . 3 . Traps | -11 -10 -10 -10 ------- Run | Yrd Mat Min Sub Traps Triggered 3 | . 3 . . Indirectly . | . . . . Trap Hack Attempts . | . . . . Triggered . | . . . . Disarmed . | . . . . Reprogrammed . | . . . . Reused . | . . . . Traps Extracted . | . . . . Installed . | . . . . Triggered . | . . . . Machines | -11 -10 -10 -10 ---------- Run | Yrd Mat Min Sub Machines Disabled 2 | . 2 . . Max in Single Turn 1 | . 1 . . Machines Repaired . | . . . . Machines Dismantled . | . . . . Machines Sabotaged . | . . . . Overloaded Fab Kills . | . . . . Hacking | -11 -10 -10 -10 --------- Run | Yrd Mat Min Sub Machines Accessed 9 | . 8 1 . Terminals 6 | . 5 1 . Fabricators . | . . . . Repair Stations 1 | . 1 . . Recycling Units 2 | . 2 . . Scanalyzers . | . . . . Garrison Access . | . . . . Total Hacks 30 | . 26 4 . Successful 23 | . 20 3 . Failed 7 | . 6 1 . Catastrophic . | . . . . Database Lockouts . | . . . . Manual 19 | . 15 4 . Terminals 20 | . 16 4 . Fabricators . | . . . . Repair Stations 4 | . 4 . . Recycling Units 6 | . 6 . . Scanalyzers . | . . . . Garrison Access . | . . . . Terminal Hacks 7 | . 4 3 . Robot Analysis 4 | . 2 2 . Prototype ID Bank 1 | . 1 . . Dispatch Records 1 | . . 1 . Zone Layout 1 | . 1 . . Fabricator Hacks . | . . . . Repair Station Hacks 4 | . 4 . . Scan Component 2 | . 2 . . Repair 2 | . 2 . . Recycling Unit Hacks 2 | . 2 . . Report Inventory 2 | . 2 . . Scanalyzer . | . . . . Garrison Access Hacks . | . . . . Unauthorized Hacks 9 | . 9 . . Terminals 6 | . 6 . . Track 1 | . 1 . . Assimilate 1 | . 1 . . Botnet 3 | . 3 . . Operators 1 | . 1 . . Fabricators . | . . . . Repair Stations . | . . . . Recycling Units 3 | . 3 . . Reject 1 | . 1 . . Recyclers 1 | . 1 . . Mask 1 | . 1 . . Scanalyzers . | . . . . Garrison Access . | . . . . Data Cores Recovered . | . . . . Used . | . . . . Hacking Detections 7 | . 6 1 . Full Trace Events 2 | . 2 . . Feedback Events . | . . . . Feedback Blocked . | . . . . Robot Schematics Acquired . | . . . . Robots Built . | . . . . Authchips . | . . . . Time . | . . . . Total Robot Build Rating . | . . . . Part Schematics Acquired . | . . . . Parts Built . | . . . . Authchips . | . . . . Time . | . . . . Total Part Build Rating . | . . . . Parts Repaired 2 | . 2 . . Time 64 | . 64 . . Parts Recycled . | . . . . Recycled Matter . | . . . . Retrieved Matter . | . . . . Retrieved Components . | . . . . Parts Scanalyzed . | . . . . Part Schematics Acquired . | . . . . Parts Damaged . | . . . . Bothacking | -11 -10 -10 -10 ------------ Run | Yrd Mat Min Sub Used RIF Installer . | . . . . Robots Hacked . | . . . . Non-combat . | . . . . Combat . | . . . . Robot Hacks Applied . | . . . . Relay Couplers Released . | . . . . Fabnet Peak Effective % . | . . . . Robots Rewired . | . . . . Allies Hacked . | . . . . Hacks Repelled . | . . . . Allies | -11 -10 -10 -10 -------- Run | Yrd Mat Min Sub Total Allies . | . . . . Largest Group . | . . . . Highest-Rated Group . | . . . . Highest-Rated Ally . | . . . . Total Orders . | . . . . Ally Attacks . | . . . . Total Damage . | . . . . Kills . | . . . . Allies Corrupted . | . . . . Allies Melted . | . . . . Intel | -11 -10 -10 -10 ------- Run | Yrd Mat Min Sub Active Infowar (turns) 1426 | 99 1327 . . Structural 67 | . 67 . . Seismic 1359 | 99 1260 . . Robot Analysis Total 4 | . 2 2 . Derelict Logs Recovered 1 | . . 1 . Drone Launches . | . . . . Drone Recoveries . | . . . . Exploration | -11 -10 -10 -10 ------------- Run | Yrd Mat Min Sub Turns Passed 3966 | 245 2153 686 882 Spaces Moved 1952 | 111 1051 349 441 Core 15 | 15 . . . Treads 1937 | 96 1051 349 441 Legs . | . . . . Wheels . | . . . . Hover . | . . . . Flight . | . . . . Fastest Speed 50 | 50 160 160 160 Average Speed 159 | 146 160 160 160 Slowest Speed 160 | 160 160 160 160 Overloaded Moves . | . . . . Propulsion Burnouts . | . . . . Robots Hopped . | . . . . Potential Cave-ins . | . . . . Cave-ins Triggered 1 | . . . 1 Exploration Rate (%) 53 | 8 100 74 30 Regions Visited 3 Branch Regions 2 Pre-discovered Areas 1 | . . 1 . Known Exits Taken . | . . . . Unknown Exits Taken 3 | 1 1 1 . Scrap Searched 1 | . . 1 . Spaces Dug 1 | . 1 . . Terrain Destroyed 5 | . 3 . 2 Melee . | . . . . Projectile 5 | . 3 . 2 AOE . | . . . . Terrain Rammed . | . . . . Walls Destroyed . | . . . . Machines Disabled . | . . . . Actions | -11 -10 -10 -10 --------- Run | Yrd Mat Min Sub Total 2595 | 150 1467 413 565 Wait 448 | 8 347 19 74 Move 1949 | 110 1050 348 441 Hop . | . . . . Pick Up 31 | 5 14 4 8 Fast Attach 14 | 7 6 1 . Attach 3 | . . 1 2 Detach 4 | . 4 . . Swap 14 | . 5 4 5 Drop 22 | . 11 4 7 Fire 107 | 20 30 32 25 Melee 3 | . . . 3 Ram . | . . . . Kick . | . . . . Crush . | . . . . Escape Stasis . | . . . . Rewire . | . . . . Trap . | . . . . Miscellaneous . | . . . . Route ------- -11/Scrapyard -10/Materials (discovered 4 exits: [*Mat x3] / *Min) -10/Mines (discovered 3 exits: [*Mat x2] / [*Sub]) -10/Subcaves History --------- Turn | Location | Event 22 | -11/Scrapyard | Discovered new exit (range 16) 246 | -11/Scrapyard | Entered Materials 314 | -10/Materials | Build established: Mutant 880 | -10/Materials | Discovered new exit (range 12) 1088 | -10/Materials | Discovered new exit (range 16) 1762 | -10/Materials | Discovered new exit (range 9) 1791 | -10/Materials | Discovered new exit (range 15) 2085 | -10/Materials | Repaired Imp. Light Cannon 2118 | -10/Materials | Repaired Imp. Light Cannon 2399 | -10/Materials | Entered Mines 2400 | -10/Mines | Assembled infested the area 2405 | -10/Mines | Assisted by a Guerilla fighting off Assembled 2523 | -10/Mines | Destroyed 9 combat bots 2630 | -10/Mines | Found DCF Scrap (15 items) 2870 | -10/Mines | Discovered new exit (range 8) 2983 | -10/Mines | Received a Rocket Launcher from a helpful Derelict 2987 | -10/Mines | Discovered new exit (range 7) 2995 | -10/Mines | Learned location of Mines (-9) 3048 | -10/Mines | Discovered new exit (range 7) 3085 | -10/Mines | Entered Subcaves 3086 | -10/Subcaves | Approached by a straggling Scientist 3229 | -10/Subcaves | A swath of the cavern ceiling suddenly collapsed 3933 | -10/Subcaves | Ambushed by Subdweller buried in earth 3947 | -10/Subcaves | Core integrity fell below 50% 3954 | -10/Subcaves | Ambushed by Subdweller buried in earth 3968 | -10/Subcaves | Crushed by falling debris 3968 | -10/Subcaves | Smashed by cave-in Last Messages --------------- Subatomizers dissect the Sub. Monowheel. Acquired Sub. Power Source. Dropped Flamer. Acquired Sub. Monowheel. Acquired 3 matter. Subatomizers dissect the Sub. Monowheel. SX-NFQ(R): "ARGHSUB!" SX-NFQ(R) knocked back. SX-NFQ(R) destroyed. Subatomizers dissect the Sub. Machine Gun. K4-V93(R): "THANKSYOU!" 2S-YH3(R) knocked back. Lgt. Nuclear Core destroyed. Subatomizers dissect the Sub. Machine Gun. The unstable cave ceiling collapses. Crushed by falling debris. Sub. Power Source destroyed. System corrupted by crushing effect (+3). Imp. Light Armor Plating destroyed. System corrupted by crushing effect (+5). Map ----- +----------------------------------------------------+ | ???????????????????????????????????????????? | | ???????????????????????????????????????????? | | ???????????? ?????????????????????????????? | | ??????????? #????????????????????????????? | | ??????????# ???##??????????????????????? | | ??????????# ??? "????#?????????????????? | | ?????????? #??? "?### ???????????????? | | ?????????? ?? #? #??????????????? | | ?????????? #?? ## #??????????????? | | #??????????? #??# #??????????????? | | ######??##??# #### #??????????????? | | ## #### ??# #??????????????? | | ## ### % #??????????????? | | ## ##?????????????? | | R #?????????????? | | #?????????????? | | % #?????????????? | | #??????????????? | | #????????????????? | | ## % ####????????????????? | | ## ## # ###??????????????? | | ## ## # ##?????????????? | | ### #?# ## #?????????????? | | ##?# ### ### #?????????????? | | #??# ## #?##;; % ##?????????????? | | #### ### ##?##;; @R #?????????????? | | ## ### ##?##### % #?????????????? | | #????# ; ##?????????????? | | ## #???## #####?????????????? | | ?## # ###???# #?????????????? | | ??## #### #?????# ##?????????????? | | ##?####??# #????# ##??????????????? | | ##??????# #???## #### ##???????????????? | | ##?????## ##???# ##??##????????????????? | | # ###????###????# ##???????????????????? | | # ####??####?## #???????????????????? | | #### ### #???????????????????? | | ###### ### ######??????????????? | | #??## #?# #??????????????? | | #??# #?# #??????????????? | | # #??# ### ### ##??????????????? | | ## #### ##?######???????????????? | | ## ## ##?????????????????????? | | # ## #?????????????????????? | | ## ## ####?????????????????????? | | ?## ## ## ####????????????????????????? | | ??########### ##???????????????????????????? | | ????????????###????????????????????????????? | | ???????????????????????????????????????????? | | ???????????????????????????????????????????? | +----------------------------------------------------+ Best States ------------- Heat Dissipation 25 Energy Generation 14 Energy Capacity 250 Matter Stores 300 Matter Capacity 300 Sight Range 16 Terrain Scan Density 10 Armor Coverage 150 Evasion (%) 50 Recoil Reduction 2 Item Schematics ----------------- None Robot Schematics ------------------ None Fabricated ------------ Nothing Repaired ---------- Imp. Light Cannon | 54% | -10/Materials Imp. Light Cannon | 74% | -10/Materials Alien Tech Used ----------------- None Achievements -------------- None Challenges ------------ None Game ------ Seed BiomechanicalFlakAutocannon Manual? 0 Play Time 00:24:24 Cumulative 116.1 hours Start 2025.05.31 @ 00:37:18 End 2025.05.31 @ 01:06:00 Sessions 1 Manual Loads 0 Difficulty Rogue Special Mode None Game No. 148 Rogue 148 Adventurer 0 Explorer 0 Win Type - Total 0 Types 0/0/0/0/0/0/0/0/0/0 Lore% 36 Gallery% 35 Achievement% 32 Wizard Run 0 Options --------- Layout 1 ASCII 0 Keyboard 0 Movement Mouse Keybinds 0 Fullscreen 1 Font 32/SmallcapsGlow Map View 50x40 Zoom Use 0% Tactical HUD 0 Map Filters NONE Filters NONE Steam 1 RUN: 72a90476-ac53-4a67-bd03-99076baddb1c